fUST/lending_fUST_20240102
["ID","MTS","AMOUNT","RATE_DAILY","PERIOD"]
[309804874,1704155438914,-778.94893005,0.00036719,2]
[309804876,1704155438923,-8076.13662501,0.00036984,4]
[309804878,1704155438932,-973.72829112,0.00036984,2]
[309804880,1704155438941,-417.94666028,0.00037,7]
[309804882,1704155438950,-200.0,0.00037534,15]
[309804884,1704155438959,-348.0,0.00037534,15]
[309804885,1704155438969,-300.0,0.00038,2]
[309804887,1704155438978,-186.57091289,0.00038336,2]
[309804889,1704155438987,-310.26087805,0.00038336,2]
[309804891,1704155438996,-14498.90109347,0.00038336,2]
[309804893,1704155439005,-412.0,0.0003874,2]
[309804895,1704155439014,-578.0554099,0.000388,45]
[309804897,1704155439023,-752.21572446,0.00039038,5]
[309804899,1704155439032,-161.25,0.0003918,7]
[309804901,1704155439041,-150.0,0.0003919,7]
[309804903,1704155439050,-851.74788118,0.00039817,2]
[309804905,1704155439060,-13001.28032,0.00039999,4]
[309804907,1704155439069,-10000.0,0.0004,2]
[309804911,1704155439088,-160.0577097,0.0004,4]
[309804913,1704155439099,-305.01160269,0.00040271,4]
[309804915,1704155439108,-1249.18635015,0.00040682,4]
[309804917,1704155439121,-1000.0,0.00040855,10]
[309804919,1704155439130,-678.4698388,0.00040879,4]
[309804921,1704155439139,-479.61158315,0.0004088,4]
[309804923,1704155439149,-213.544295,0.00040881,2]
[309804925,1704155439158,-163.601699,0.00040881,2]
[309804927,1704155439168,-10006.20963909,0.00041,2]
[309804929,1704155439177,-584.0544719,0.00041093,4]
[309804931,1704155439187,-161.04129225,0.00041093,4]
[309804933,1704155439196,-493.03365661,0.00041093,2]
[309804935,1704155439205,-3398.48435467,0.00041093,4]
[309804937,1704155439214,-616.23372987,0.00041093,2]
[309804939,1704155439223,-291.8871704,0.00041093,10]
[309804941,1704155439233,-780.69671155,0.00041093,4]
[309804943,1704155439244,-293.645103,0.00041093,4]
[309804945,1704155439253,-259.0671917,0.00041093,4]
[309804947,1704155439263,-434.95615109,0.00041093,4]
[309804949,1704155439272,-439.44726,0.00041093,4]
[309804952,1704155439282,-500.0,0.00041095,7]
[309804954,1704155439291,-500.0,0.00041095,7]
[309804956,1704155439300,-500.0,0.00041095,7]
[309804958,1704155439311,-500.0,0.00041095,7]
[309804960,1704155439320,-500.0,0.00041095,7]
[309804962,1704155439330,-1928.02,0.00041095,7]
[309804964,1704155439339,-503.98301238,0.00041095,7]
[309804966,1704155439349,-500.0,0.00041095,7]
[309804968,1704155439358,-233.90698093,0.00041095,7]
[309804970,1704155439367,-2531.74,0.00041095,7]
[309804972,1704155439377,-150.0,0.00041095,7]
[309804974,1704155439386,-375.79508949,0.00041095,7]
[309804976,1704155439396,-500.0,0.00041095,7]
[309804978,1704155439407,-500.0,0.00041095,7]
[309804980,1704155439416,-500.0,0.00041095,7]
[309804982,1704155439426,-500.0,0.00041095,7]
[309804984,1704155439435,-710.32,0.00041095,7]
[309804986,1704155439445,-500.0,0.00041095,7]
[309804988,1704155439454,-500.0,0.00041095,7]
[309804990,1704155439463,-26739.98,0.00041095,3]
[309804992,1704155439473,-2405.02,0.00041095,7]
[309804994,1704155439483,-510.41341757,0.00041095,7]
[309804996,1704155439492,-500.0,0.00041095,7]
[309804998,1704155439501,-521.04904907,0.00041095,7]
[309805000,1704155439510,-516.71242908,0.00041095,7]
[309805001,1704155439520,-500.0,0.00041095,7]
[309805003,1704155439529,-500.0,0.00041095,7]
[309805004,1704155439540,-500.0,0.00041095,7]
[309805006,1704155439549,-500.0,0.00041095,7]
[309805007,1704155439558,-500.0,0.00041095,7]
[309805009,1704155439568,-624.75,0.00041095,7]
[309805010,1704155439579,-2630.17,0.00041095,7]
[309805012,1704155439588,-6104.17,0.00041095,7]
[309805014,1704155439598,-500.0,0.00041095,7]
[309805015,1704155439608,-3636.38,0.00041095,7]
[309805017,1704155439617,-500.0,0.00041095,7]
[309805019,1704155439627,-798.69,0.00041095,7]
[309805020,1704155439637,-1057.23,0.00041095,7]
[309805022,1704155439647,-7779.12033688,0.00041095,14]
[309805023,1704155439658,-500.0,0.00041095,7]
[309805025,1704155439667,-512.00198525,0.00041095,7]
[309805026,1704155439677,-500.0,0.00041095,7]
[309805028,1704155439686,-500.0,0.00041095,7]
[309805030,1704155439695,-500.0,0.00041095,7]
[309805031,1704155439705,-500.0,0.00041095,7]
[309805033,1704155439714,-2261.44,0.00041095,7]
[309805034,1704155439725,-269.24849544,0.00041095,7]
[309805036,1704155439734,-607.54,0.00041095,7]
[309805038,1704155439744,-500.0,0.00041095,7]
[309805039,1704155439753,-500.0,0.00041095,7]
[309805041,1704155439762,-200.08381574,0.00041095,2]
[309805042,1704155439772,-514.07894467,0.00041095,7]
[309805044,1704155439781,-521.49628956,0.00041095,7]
[309805046,1704155439791,-1215.7342291,0.00041096,7]
[309805048,1704155439800,-41864.4608538,0.00041096,15]
[309805051,1704155439810,-500.0,0.00041232,7]
[309805053,1704155439819,-500.0,0.00041232,7]
[309805054,1704155439829,-500.0,0.00041232,7]
[309805056,1704155439839,-500.0,0.00041232,7]
[309805058,1704155439857,-500.0,0.00041232,7]
[309805060,1704155439881,-1928.02,0.00041232,7]
[309805064,1704155439890,-500.0,0.00041232,7]
[309805066,1704155439901,-2531.74,0.00041232,7]
[309805067,1704155439910,-150.72532228,0.00041232,7]
[309805069,1704155439920,-500.0,0.00041232,7]
[309805071,1704155439929,-500.0,0.00041232,7]
[309805072,1704155439938,-500.0,0.00041232,7]
[309805074,1704155439947,-526.7657092,0.00041232,7]
[309805076,1704155439957,-710.32,0.00041232,7]
[309805077,1704155439966,-500.0,0.00041232,7]
[309805079,1704155439976,-500.0,0.00041232,7]
[309805081,1704155439985,-26739.98,0.00041232,3]
[309805089,1704155440092,-2405.02,0.00041232,7]
[309805091,1704155440101,-500.0,0.00041232,7]
[309805093,1704155440111,-500.0,0.00041232,7]
[309805095,1704155440121,-500.0,0.00041232,7]
[309805096,1704155440130,-500.0,0.00041232,7]
[309805098,1704155440140,-500.0,0.00041232,7]
[309805100,1704155440149,-500.0,0.00041232,7]
[309805101,1704155440161,-624.75,0.00041232,7]
[309805103,1704155440171,-2630.17,0.00041232,7]
[309805105,1704155440180,-6104.17,0.00041232,7]
[309805106,1704155440189,-500.0,0.00041232,7]
[309805108,1704155440198,-3636.38,0.00041232,7]
[309805110,1704155440206,-500.0,0.00041232,7]
[309805111,1704155440215,-798.69,0.00041232,7]
[309805113,1704155440225,-1057.23,0.00041232,7]
[309805115,1704155440234,-500.0,0.00041232,7]
[309805116,1704155440242,-500.0,0.00041232,7]
[309805118,1704155440253,-500.0,0.00041232,7]
[309805120,1704155440261,-500.0,0.00041232,7]
[309805121,1704155440270,-2261.44,0.00041232,7]
[309805123,1704155440279,-500.0,0.00041232,7]
[309805125,1704155440288,-607.54,0.00041232,7]
[309805126,1704155440297,-500.0,0.00041232,7]
[309805128,1704155440306,-500.0,0.00041232,7]
[309805129,1704155440314,-402.02119541,0.00041287,7]
[309805131,1704155440324,-432.98384561,0.00041287,7]
[309805133,1704155440333,-200.0,0.00041288,30]
[309805134,1704155440342,-200.0,0.00041288,30]
[309805136,1704155440350,-368.0,0.00041288,30]
[309805138,1704155440359,-299.365,0.00041289,2]
[309805139,1704155440368,-379.25546875,0.0004136,2]
[309805141,1704155440377,-250.0,0.00041368,10]
[309805143,1704155440386,-500.0,0.00041369,7]
[309805144,1704155440395,-500.0,0.00041369,7]
[309805147,1704155440405,-327.2937778,0.00041369,7]
[309805150,1704155440414,-500.0,0.00041369,7]
[309805153,1704155440424,-500.0,0.00041369,7]
[309805155,1704155440432,-1928.02,0.00041369,7]
[309805158,1704155440442,-500.0,0.00041369,7]
[309805161,1704155440450,-2531.74,0.00041369,7]
[309805164,1704155440460,-500.0,0.00041369,7]
[309805166,1704155440469,-500.0,0.00041369,7]
[309805168,1704155440478,-325.93189908,0.00041369,7]
[309805170,1704155440487,-710.32,0.00041369,7]
[309805172,1704155440496,-296.97843713,0.00041369,7]
[309805173,1704155440506,-500.0,0.00041369,7]
[309805175,1704155440515,-26739.98,0.00041369,3]
[309805177,1704155440524,-2405.02,0.00041369,7]
[309805179,1704155440534,-586.06002618,0.00041369,7]
[309805181,1704155440543,-500.0,0.00041369,7]
[309805182,1704155440553,-500.0,0.00041369,7]
[309805183,1704155440562,-500.0,0.00041369,7]
[309805184,1704155440571,-500.0,0.00041369,7]
[309805185,1704155440580,-500.0,0.00041369,7]
[309805186,1704155440591,-624.75,0.00041369,7]
[309805187,1704155440600,-2630.17,0.00041369,7]
[309805188,1704155440610,-6104.17,0.00041369,7]
[309805189,1704155440620,-500.0,0.00041369,7]
[309805191,1704155440629,-3636.38,0.00041369,7]
[309805192,1704155440639,-509.57407601,0.00041369,7]
[309805193,1704155440648,-798.69,0.00041369,7]
[309805195,1704155440658,-1057.23,0.00041369,7]
[309805197,1704155440668,-500.0,0.00041369,7]
[309805198,1704155440676,-500.0,0.00041369,7]
[309805200,1704155440686,-500.0,0.00041369,7]
[309805202,1704155440695,-314.35857318,0.00041369,7]
[309805204,1704155440705,-2261.44,0.00041369,7]
[309805206,1704155440714,-500.0,0.00041369,7]
[309805208,1704155440724,-607.54,0.00041369,7]
[309805210,1704155440733,-500.0,0.00041369,7]
[309805212,1704155440743,-500.0,0.00041369,7]
[309805214,1704155440751,-213.544295,0.00041392,30]
[309805216,1704155440761,-168.43551829,0.00041505,3]
[309805217,1704155440770,-23053.90850853,0.00041505,4]
[309805218,1704155440779,-500.0,0.00041506,7]
[309805219,1704155440788,-500.0,0.00041506,7]
[309805220,1704155440796,-500.0,0.00041506,7]
[309805221,1704155440806,-500.0,0.00041506,7]
[309805222,1704155440815,-1928.02,0.00041506,7]
[309805223,1704155440824,-500.0,0.00041506,7]
[309805224,1704155440833,-2531.74,0.00041506,7]
[309805225,1704155440843,-500.0,0.00041506,7]
[309805227,1704155440852,-500.0,0.00041506,7]
[309805229,1704155440861,-710.32,0.00041506,7]
[309805231,1704155440870,-500.0,0.00041506,7]
[309805232,1704155440879,-26739.98,0.00041506,3]
[309805233,1704155440890,-2405.02,0.00041506,7]
[309805234,1704155440899,-500.0,0.00041506,7]
[309805235,1704155440909,-500.0,0.00041506,7]
[309805236,1704155440918,-412.33022692,0.00041506,7]
[309805237,1704155440928,-500.0,0.00041506,7]
[309805238,1704155440938,-500.0,0.00041506,7]
[309805239,1704155440948,-624.75,0.00041506,7]
[309805240,1704155440957,-2630.17,0.00041506,7]
[309805241,1704155440966,-6104.17,0.00041506,7]
[309805242,1704155440975,-619.58734193,0.00041506,7]
[309805243,1704155440984,-3636.38,0.00041506,7]
[309805244,1704155440993,-798.69,0.00041506,7]
[309805246,1704155441003,-1057.23,0.00041506,7]
[309805247,1704155441012,-500.0,0.00041506,7]
[309805248,1704155441021,-500.0,0.00041506,7]
[309805249,1704155441030,-500.0,0.00041506,7]
[309805250,1704155441040,-2261.44,0.00041506,7]
[309805251,1704155441049,-500.0,0.00041506,7]
[309805252,1704155441058,-607.54,0.00041506,7]
[309805253,1704155441067,-500.0,0.00041506,7]
[309805254,1704155441076,-500.0,0.00041506,7]
[309805255,1704155441085,-332.022187,0.00041553,120]
[309805256,1704155441095,-213.67244811,0.00041642,4]
[309805257,1704155441104,-500.0,0.00041643,7]
[309805258,1704155441113,-500.0,0.00041643,7]
[309805259,1704155441122,-575.96309197,0.00041643,7]
[309805261,1704155441132,-500.0,0.00041643,7]
[309805262,1704155441141,-1928.02,0.00041643,7]
[309805263,1704155441152,-500.0,0.00041643,7]
[309805264,1704155441161,-2531.74,0.00041643,7]
[309805265,1704155441170,-500.0,0.00041643,7]
[309805266,1704155441179,-500.0,0.00041643,7]
[309805267,1704155441188,-710.32,0.00041643,7]
[309805268,1704155441197,-547.64127988,0.00041643,7]
[309805269,1704155441206,-12683.46831106,0.00041643,3]
[309805270,1704155441266,-14056.51168894,0.00041643,3]
[309805271,1704155441276,-2405.02,0.00041643,7]
[309805272,1704155441284,-497.79372547,0.00041643,7]
[309805273,1704155441294,-500.0,0.00041643,7]
[309805274,1704155441303,-230.65121076,0.00041643,7]
[309805275,1704155441312,-500.0,0.00041643,7]
[309805276,1704155441322,-624.75,0.00041643,7]
[309805277,1704155441331,-2630.17,0.00041643,7]
[309805278,1704155441342,-6104.17,0.00041643,7]
[309805279,1704155441354,-3636.38,0.00041643,7]
[309805280,1704155441364,-798.69,0.00041643,7]
[309805281,1704155441374,-1034.72815781,0.00041643,7]
[309805459,1704155446401,-268.01413026,0.00029368,4]
[309805461,1704155446411,-2452.22875085,0.0004127,2]
[309805507,1704155446955,-234.29315532,0.00025636,2]
[309805509,1704155446964,-547.77124915,0.0004127,2]
[309805511,1704155446973,-10822.48026242,0.0004127,4]
[309805513,1704155446985,-1742.82237472,0.0004127,4]
[309805515,1704155446996,-323.0,0.0004127,4]
[309805566,1704155447719,-750.08313753,0.0004127,4]
[309805569,1704155447728,-456.58346253,0.0004127,4]
[309805572,1704155447738,-3111.20854496,0.0004127,4]
[309805575,1704155447747,-221.26410958,0.0004127,4]
[309805577,1704155447756,-326.340661,0.0004127,4]
[309805580,1704155447765,-319.88017301,0.0004127,4]
[309805583,1704155447774,-1037.32022099,0.0004127,4]
[309805585,1704155447784,-398.6254585,0.0004127,4]
[309805587,1704155447793,-805.58249726,0.0004127,4]
[309805589,1704155447802,-5000.0,0.00041271,15]
[309805591,1704155447812,-459.90775143,0.00041505,20]
[309805593,1704155447821,-309.73746211,0.00041505,4]
[309805595,1704155447831,-307.42005203,0.00041505,4]
[309805597,1704155447840,-7373.02189567,0.00041505,4]
[309805599,1704155447849,-1579.39236863,0.00041505,4]
[309805601,1704155447859,-188.0,0.00041506,2]
[309805603,1704155447868,-22.50184219,0.00041643,7]
[309805605,1704155447877,-500.0,0.00041643,7]
[309805608,1704155447887,-500.0,0.00041643,7]
[309805610,1704155447896,-500.0,0.00041643,7]
[309805613,1704155447905,-2261.44,0.00041643,7]
[309805616,1704155447915,-500.0,0.00041643,7]
[309805618,1704155447924,-607.54,0.00041643,7]
[309805621,1704155447933,-500.0,0.00041643,7]
[309805624,1704155447942,-500.0,0.00041643,7]
[309805627,1704155447951,-895.25,0.0004177,3]
[309805631,1704155447961,-309.6903097,0.00041778,4]
[309805633,1704155447970,-290.46128551,0.00041778,4]
[309805636,1704155447979,-1574.74418664,0.00041779,4]
[309805639,1704155447989,-983.70006597,0.00041779,2]
[309805642,1704155447998,-500.0,0.0004178,7]
[309805644,1704155448007,-534.56352274,0.0004178,7]
[309805646,1704155448016,-500.0,0.0004178,7]
[309805648,1704155448025,-500.0,0.0004178,7]
[309805650,1704155448034,-2531.74,0.0004178,7]
[309805652,1704155448043,-185.54010484,0.0004178,7]
[309805653,1704155448060,-500.0,0.0004178,7]
[309805655,1704155448070,-710.32,0.0004178,7]
[309805657,1704155448079,-151.0,0.0004178,2]
[309805659,1704155448088,-26739.98,0.0004178,3]
[309805661,1704155448098,-2405.02,0.0004178,7]
[309805663,1704155448107,-500.0,0.0004178,7]
[309805665,1704155448116,-500.0,0.0004178,7]
[309805667,1704155448128,-624.75,0.0004178,7]
[309805669,1704155448137,-2630.17,0.0004178,7]
[309805671,1704155448146,-6104.17,0.0004178,7]
[309805673,1704155448155,-3636.38,0.0004178,7]
[309805675,1704155448164,-798.69,0.0004178,7]
[309805677,1704155448173,-1057.23,0.0004178,7]
[309805679,1704155448183,-500.0,0.0004178,7]
[309805681,1704155448192,-500.0,0.0004178,7]
[309805683,1704155448201,-500.0,0.0004178,7]
[309805685,1704155448210,-2261.44,0.0004178,7]
[309805687,1704155448219,-500.0,0.0004178,7]
[309805689,1704155448228,-607.54,0.0004178,7]
[309805691,1704155448237,-499.26335927,0.0004178,7]
[309805693,1704155448246,-575.77390796,0.0004178,7]
[309805695,1704155448257,-213.544295,0.00041903,30]
[309805697,1704155448266,-1673.4816874,0.00041916,4]
[309805699,1704155448276,-500.0,0.00041917,7]
[309805701,1704155448285,-500.0,0.00041917,7]
[309805703,1704155448294,-2531.74,0.00041917,7]
[309805705,1704155448303,-500.0,0.00041917,7]
[309805707,1704155448312,-710.32,0.00041917,7]
[309805709,1704155448321,-26739.98,0.00041917,3]
[309805711,1704155448330,-2405.02,0.00041917,7]
[309805713,1704155448340,-500.0,0.00041917,7]
[309805715,1704155448349,-500.0,0.00041917,7]
[309805717,1704155448358,-624.75,0.00041917,7]
[309805719,1704155448367,-2630.17,0.00041917,7]
[309805721,1704155448376,-3239.1270649,0.00041917,7]
[309805724,1704155448398,-461.72430569,0.0004127,4]
[309805725,1704155448407,-1618.50421391,0.00041917,7]
[309805726,1704155448419,-1246.53872119,0.00041917,7]
[309805727,1704155448428,-375.01885326,0.00041917,7]
[309805728,1704155448440,-1419.6476816,0.00041917,7]
[309805729,1704155448451,-1841.71346514,0.00041917,7]
[309805730,1704155448460,-798.69,0.00041917,7]
[309805731,1704155448469,-1057.23,0.00041917,7]
[309805732,1704155448478,-500.0,0.00041917,7]
[309805733,1704155448487,-500.0,0.00041917,7]
[309805734,1704155448497,-500.0,0.00041917,7]
[309805735,1704155448506,-2261.44,0.00041917,7]
[309805736,1704155448515,-500.0,0.00041917,7]
[309805738,1704155448524,-607.54,0.00041917,7]
[309805740,1704155448532,-2787.6291567,0.00041966,2]
[309805742,1704155448542,-2787.6291567,0.00041968,2]
[309805744,1704155448551,-2787.6291567,0.00041976,2]
[309805746,1704155448560,-2765.50314386,0.00041982,2]
[309805748,1704155448572,-22.12601284,0.00041982,2]
[309805750,1704155448581,-151.0,0.00041982,2]
[309805752,1704155448591,-554.49666551,0.00042,10]
[309805754,1704155448603,-374.36711539,0.00042,10]
[309805888,1704155937644,200.36728598,0.0002203,2]
[309805889,1704156041673,1818.17749445,0.0002203,2]
[309805891,1704156061683,300.65330859,0.0002203,2]
[309805955,1704156497842,151.44348318,0.00021986,2]
[309805962,1704156543271,11190.09768503,0.00021986,2]
[309805963,1704156544986,333.06538241,0.00021986,2]
[309805964,1704156546308,4410.31213089,0.00021986,2]
[309805972,1704156561366,10709.31229761,0.00021986,2]
[309805973,1704156566257,167.00886208,0.00021986,2]
[309805974,1704156606322,309.72126324,0.00022,2]
[309806060,1704156632723,-9207.06274993,0.00028092,2]
[309806062,1704156632734,-11614.68423167,0.00028092,2]
[309806064,1704156632744,-524.63560134,0.00028093,2]
[309806066,1704156632753,-4778.86931745,0.00028093,2]
[309806068,1704156632763,-457.24067654,0.00028094,2]
[309806070,1704156632772,-1028.57928007,0.00028094,2]
[309806072,1704156632781,-154.90705577,0.00028094,2]
[309806075,1704156632790,-2026.17456491,0.00028095,2]
[309806078,1704156632799,-154.90705577,0.00028095,2]
[309806081,1704156632808,-524.67872739,0.00028095,2]
[309806084,1704156632817,-1573.07253111,0.00028096,2]
[309806087,1704156632826,-154.90705577,0.00028096,2]
[309806090,1704156632835,-212.52935547,0.00028096,2]
[309806093,1704156632845,-274.09651383,0.00028096,2]
[309806096,1704156632854,-2030.79634565,0.00028096,2]
[309806099,1704156632864,-1192.67954323,0.00028096,2]
[309806102,1704156632873,-4893.33584476,0.00028096,2]
[309806106,1704156632885,-8774.11008486,0.00028096,2]
[309806109,1704156632895,-675.55479392,0.00028097,2]
[309806110,1704156632904,-4801.68050956,0.00028097,2]
[309806111,1704156632914,-10470.42522499,0.00028097,2]
[309806112,1704156632923,-300.69795408,0.00028098,2]
[309806114,1704156632933,-2988.74038955,0.00028098,2]
[309806116,1704156632942,-194.2520832,0.00028112,2]
[309806118,1704156632952,-176.60469838,0.00028116,3]
[309806120,1704156632962,-24900.0,0.00028219,2]
[309806122,1704156632970,-200.0,0.00030913,15]
[309806124,1704156632980,-194.2520832,0.00031333,2]
[309806126,1704156632989,-268.52109404,0.00031334,4]
[309806128,1704156632998,-153.0,0.00033,2]
[309806129,1704156633007,-1000.0,0.00034,7]
[309806131,1704156633016,-280.0,0.00034005,15]
[309806132,1704156633026,-194.2520832,0.00034554,2]
[309806133,1704156633035,-429.0,0.00035452,2]
[309806135,1704156633045,-15012.32620699,0.00035612,4]
[309806137,1704156633054,-249.01664,0.00035616,120]
[309806139,1704156633063,-384.97578846,0.00036,2]
[309806141,1704156633073,-239.40372608,0.00036,4]
[309806411,1704156638646,-3900.16761193,0.00036,4]
[309806418,1704156638705,-2204.50374427,0.00036,4]
[309806432,1704156638816,-22139.92558228,0.00036,4]
[309806434,1704156638825,-1083.15,0.000365,5]
[309806435,1704156638835,-309.11880702,0.00036765,2]
[309806437,1704156638844,-700.0,0.00036765,2]
[309806439,1704156638853,-380.05,0.00036973,3]
[309806441,1704156638862,-505.14781988,0.00036982,4]
[309806443,1704156638871,-402.02119541,0.00036982,4]
[309806446,1704156638883,-973.72829112,0.00036984,2]
[309806447,1704156638893,-8076.13662501,0.00036984,4]
[309806449,1704156638902,-155.33300553,0.00036984,4]
[309806451,1704156638912,-417.94666028,0.00037,7]
[309806453,1704156638921,-391.0,0.00037405,15]
[309806454,1704156638931,-194.2520832,0.00037774,2]
[309806455,1704156638940,-155.77265569,0.00038,7]
[309806456,1704156638950,-7836.10235339,0.00038359,2]
[309806457,1704156638959,-1271.55236951,0.00038359,2]
[309806458,1704156638968,-10560.59063756,0.00038359,2]
[309806459,1704156638978,-34157.19395102,0.00038359,2]
[309806460,1704156638987,-1270.83374624,0.00038459,2]
[309806461,1704156638997,-479.0,0.0003874,2]
[309806462,1704156639006,-578.0554099,0.000388,45]
[309806463,1704156639015,-752.21572446,0.00039038,5]
[309806464,1704156639025,-2477.959816,0.00039038,2]
[309806466,1704156639034,-1329.23155795,0.0003968,2]
[309806468,1704156639042,-160.0577097,0.00040028,4]
[309806470,1704156639052,-301.36141162,0.00040029,4]
[309806472,1704156639061,-305.01160269,0.00040271,4]
[309806474,1704156639070,-1249.18635015,0.00040682,4]
[309806476,1704156639080,-1000.0,0.00040748,10]
[309806478,1704156639089,-213.544296,0.00040881,2]
[309806480,1704156639098,-213.544295,0.00040881,2]
[309806482,1704156639107,-163.601699,0.00040881,2]
[309806483,1704156639116,-379.25546875,0.00040953,2]
[309806485,1704156639126,-194.2520832,0.00040995,2]
[309806487,1704156639136,-678.4698388,0.00041052,4]
[309806489,1704156639145,-13001.28032,0.00041091,4]
[309806492,1704156639155,-493.03365661,0.00041093,2]
[309806493,1704156639165,-479.61158315,0.00041093,4]
[309806496,1704156639174,-161.04129225,0.00041093,4]
[309806498,1704156639185,-434.95615109,0.00041093,4]
[309806500,1704156639194,-293.645103,0.00041093,4]
[309806502,1704156639203,-259.0671917,0.00041093,4]
[309806504,1704156639212,-584.0544719,0.00041093,4]
[309806506,1704156639221,-616.23372987,0.00041093,2]
[309806508,1704156639231,-780.69671155,0.00041093,4]
[309806510,1704156639240,-291.8871704,0.00041093,10]
[309806512,1704156639249,-996.571467,0.00041093,2]
[309806514,1704156639257,-373.75248597,0.00041094,4]
[309806516,1704156639267,-500.0,0.00041095,7]
[309806517,1704156639275,-150.72532228,0.00041095,7]
[309806520,1704156639285,-250.0,0.00041095,10]
[309806521,1704156639294,-500.0,0.00041095,7]
[309806523,1704156639304,-500.0,0.00041095,7]
[309806525,1704156639313,-521.49628956,0.00041095,7]
[309806527,1704156639321,-200.08381574,0.00041095,2]
[309806529,1704156639331,-500.0,0.00041095,7]
[309806531,1704156639340,-233.90698093,0.00041095,7]
[309806533,1704156639349,-2320.77,0.00041095,7]
[309806536,1704156639361,-2204.61,0.00041095,7]
[309806537,1704156639370,-500.0,0.00041095,7]
[309806540,1704156639379,-500.0,0.00041095,7]
[309806542,1704156639389,-500.0,0.00041095,7]
[309806543,1704156639398,-375.79508949,0.00041095,7]
[309806545,1704156639408,-500.0,0.00041095,7]
[309806547,1704156639417,-500.0,0.00041095,7]
[309806549,1704156639427,-500.0,0.00041095,7]
[309806551,1704156639436,-500.0,0.00041095,7]
[309806553,1704156639445,-651.12,0.00041095,7]
[309806555,1704156639455,-500.0,0.00041095,7]
[309806557,1704156639464,-24511.65,0.00041095,3]
[309806559,1704156639474,-500.0,0.00041095,7]
[309806561,1704156639483,-500.0,0.00041095,7]
[309806563,1704156639492,-500.0,0.00041095,7]
[309806565,1704156639501,-516.71242908,0.00041095,7]
[309806567,1704156639511,-500.0,0.00041095,7]
[309806569,1704156639520,-510.41341757,0.00041095,7]
[309806571,1704156639529,-500.0,0.00041095,7]
[309806573,1704156639538,-500.0,0.00041095,7]
[309806575,1704156639547,-500.0,0.00041095,7]
[309806577,1704156639556,-500.0,0.00041095,7]
[309806579,1704156639565,-2410.99,0.00041095,7]
[309806581,1704156639574,-3333.35,0.00041095,7]
[309806583,1704156639583,-572.68,0.00041095,7]
[309806585,1704156639592,-500.0,0.00041095,7]
[309806587,1704156639601,-5595.49,0.00041095,7]
[309806589,1704156639612,-521.04904907,0.00041095,7]
[309806591,1704156639622,-500.0,0.00041095,7]
[309806593,1704156639631,-512.37647407,0.00041095,7]
[309806595,1704156639641,-500.0,0.00041095,7]
[309806597,1704156639650,-732.14,0.00041095,7]
[309806599,1704156639659,-1978.76,0.00041095,7]
[309806601,1704156639668,-500.0,0.00041095,7]
[309806603,1704156639676,-7779.12033688,0.00041095,14]
[309806605,1704156639686,-512.00198525,0.00041095,7]
[309806607,1704156639695,-500.0,0.00041095,7]
[309806608,1704156639705,-269.24849544,0.00041095,7]
[309806610,1704156639715,-968.19,0.00041095,7]
[309806611,1704156639724,-500.0,0.00041095,7]
[309806613,1704156639733,-531.6,0.00041095,7]
[309806615,1704156639742,-514.07894467,0.00041095,7]
[309806617,1704156639752,-1928.02,0.00041095,7]
[309806619,1704156639761,-500.0,0.00041095,7]
[309806620,1704156639771,-1215.7342291,0.00041096,7]
[309806622,1704156639780,-41864.4608538,0.00041096,15]
[309806624,1704156639789,-200.0,0.00041146,30]
[309806626,1704156639798,-348.0,0.00041146,30]
[309806628,1704156639807,-161.25,0.00041212,7]